Cogmind - Beta 13 *** ADVENTURER MODE // 2024.03.03 @ 19:43:52 Player: dF0X Result: Destroyed by G-47 Trooper with Particle Gun Performance ------------- Evolutions (3) 1500 Regions Visited (5) 1000 Robots Destroyed (76) 380 Value Destroyed (2444) 2444 Prototype IDs (0) 0 Alien Tech Used (0) 0 Bonus (0) 0 TOTAL SCORE: 5324 Bonus ------- None Cogmind --------- Core Integrity 0/700 Matter 144/300 Energy 100/100 System Corruption 3% Temperature Cool (9) Movement Core (200) Ox3 Location -7/Lower Caves Parts ------- > --- POWER (3) -------- (None) > --- PROPULSION (3) --- (None) > --- UTILITY (5) ------ Medium Storage Unit Improved Terrain Scan Processor Advanced Targeting Computer > --- WEAPON (2) ------- (None) > --- INVENTORY (10) --- Medium Storage Unit Improved Sensor Array Improved Signal Interpreter Quantum Capacitor Quantum Capacitor Hacking Suite Particle Gun Peak State ------------ > --- POWER ------------ Ion Engine Light Nuclear Core Micro Nuclear Core > --- PROPULSION ------- Light Treads Advanced Treads Advanced Treads > --- UTILITY ---------- Medium Storage Unit Terrain Scanner Improved Terrain Scan Processor Advanced Targeting Computer Shield Generator > --- WEAPON ----------- Heavy Particle Cannon Heavy Particle Cannon > --- INVENTORY -------- Medium Storage Unit Improved Sensor Array Improved Signal Interpreter Quantum Capacitor Quantum Capacitor Hacking Suite Particle Gun [Rating: 35] Favorites ----------- Power Ion Engine Engine Ion Engine Power Core Light Nuclear Core Propulsion Light Treads Treads Light Treads Leg VSS Leg Wheel Compact Wheel Flight Unit Flight Unit Utility Medium Storage Unit Device Terrain Scanner Storage Medium Storage Unit Processor Targeting Computer Weapon Heavy Particle Cannon Energy Gun EM Pulse Gun Energy Cannon Heavy Particle Cannon Ballistic Gun Assault Rifle Launcher Grenade Launcher Build | -11 -10 -9 -8 -7 -7 ------- Run | Yrd Mat Mat Mat Fac Low Slots Evolved 6 | . . 2 2 2 . Power 2 | . . . 1 1 . Propulsion 1 | . . 1 . . . Utility 3 | . . 1 1 1 . Weapon . | . . . . . . Parts Attached 69 | 6 11 8 40 4 . Power 10 | 1 1 1 6 1 . Engine 7 | 1 1 1 4 . . Core 3 | . . . 2 1 . Reactor . | . . . . . . Propulsion 23 | 2 6 4 11 . . Treads 9 | . 2 1 6 . . Leg 7 | 2 2 . 3 . . Wheel 4 | . . 3 1 . . Hover . | . . . . . . Flight 3 | . 2 . 1 . . Utility 17 | 1 2 1 10 3 . Device 7 | . 1 . 5 1 . Storage 5 | 1 1 . 3 . . Processor 5 | . . 1 2 2 . Hackware . | . . . . . . Protection . | . . . . . . Artifact . | . . . . . . Weapon 19 | 2 2 2 13 . . Energy Gun 6 | 1 1 . 4 . . Energy Cannon 4 | . . . 4 . . Ballistic Gun 7 | 1 1 1 4 . . Ballistic Cannon . | . . . . . . Launcher 2 | . . 1 1 . . Special Weapon . | . . . . . . Impact Weapon . | . . . . . . Slashing Weapon . | . . . . . . Piercing Weapon . | . . . . . . Special Melee Weapon . | . . . . . . Unidentified Prototypes . | . . . . . . Corrupted Parts 2 | . . . 2 . . System Corruption 6 | . . . 6 . . Parts Lost 30 | . . 2 18 2 8 Power 8 | . . 1 4 . 3 Propulsion 8 | . . . 5 1 2 Utility 4 | . . . 2 1 1 Weapon 10 | . . 1 7 . 2 Highest Loss Streak 10 | . . 1 4 2 10 To Critical Strikes . | . . . . . . Average Slot Usage (%) 89 | . 95 92 84 95 40 Engine 9 | . 13 10 8 7 1 Core 3 | . . . 2 10 2 Treads 17 | . 12 23 13 22 4 Leg 3 | . 14 . 4 . . Wheel 1 | . . 4 2 . . Device 11 | . 9 11 9 14 1 Storage 11 | . 14 11 13 7 7 Processor 10 | . . 11 11 15 15 Energy Gun 4 | . 13 7 3 . . Energy Cannon 5 | . . . 3 15 6 Ballistic Gun 6 | . 13 6 9 . . Launcher 1 | . . 7 . . . Naked Turns . | . . . . . . Heaviest Build 41 | 14 24 23 33 41 22 Greatest Support 65 | 20 40 60 65 64 3 Greatest Overweight (x) 7 | 1 1 1 1 1 7 Average Overweight (x) . | . . . . . 3 Largest Inventory Capacity 25 | 8 10 10 25 10 10 Average Capacity 9 | 7 9 10 10 10 10 Most Carried 10 | 6 10 10 10 10 9 Average Carried 8 | 3 8 8 8 8 9 Final Capacity 10 | 8 10 10 10 10 10 Final Carried 10 | 4 10 8 7 9 9 Class Distribution -------------------- 52% | Scavenger-Mutant 47% | Mutant Dominant Class ---------------- Mutant | -10/Materials Mutant | -9/Materials Scavenger-Mutant | -8/Materials Scavenger-Mutant | -7/Factory Mutant | -7/Lower Caves Resources | -11 -10 -9 -8 -7 -7 ----------- Run | Yrd Mat Mat Mat Fac Low Matter Collected 1808 | 260 47 250 1187 64 . Remotely . | . . . . . . Salvage Created 2918 | . 47 515 1696 552 108 Parts 155 | . 7 25 80 41 2 Haulers Intercepted 2 | . . . 2 . . Recyclers Shooed 1 | . . . 1 . . Parts Field Recycled . | . . . . . . Retrieved Matter . | . . . . . . Parts Self-Destructed 2 | . . . . . 2 Prevented . | . . . . . . Kills | -11 -10 -9 -8 -7 -7 ------- Run | Yrd Mat Mat Mat Fac Low Combat Hostiles Destroyed 57 | . 3 14 28 10 2 Guns 28 | . 3 7 18 . . Cannons 16 | . . . 4 10 2 AOE 12 | . . 7 5 . . Classes Destroyed 11 | . 1 5 4 1 . Worker 3 | . . 1 2 . . Builder 4 | . . . 4 . . Hauler 2 | . . . 2 . . Recycler 4 | . . . 3 1 . Watcher 6 | . . 1 3 2 . Swarmer 13 | . 3 3 4 3 . Grunt 28 | . . 5 17 4 2 Brawler 2 | . . 2 . . . Sentry 10 | . . 4 5 1 . Hunter 2 | . . . 2 . . Programmer 2 | . . . . 2 . Best Kill Streak 7 | . 3 4 6 5 7 Combat Bots Only 6 | . 3 3 4 4 6 Max Kills in Single Turn 4 | . 2 4 2 1 1 Gunslinging 1 | . 1 . . . . Exploded 3 | . . 3 1 . . Melee . | . . . . . . Uniques/NPCs Destroyed . | . . . . . . Combat | -11 -10 -9 -8 -7 -7 -------- Run | Yrd Mat Mat Mat Fac Low Hostile Shots Fired 446 | . 3 63 246 59 75 Missed 110 | . . 19 61 13 17 Damage Taken 4042 | . 18 531 2033 664 796 Core 1104 | . . 72 323 362 347 Absorbed by Shields 158 | . . . . 158 . Ignored by Resistances 1100 | . 6 155 589 145 205 Core Remaining (%) 80 | 100 100 82 41 . . Volleys Fired 232 | . 4 40 153 27 8 Largest 2 | . 2 2 2 2 2 Hottest 150 | . 60 70 150 150 150 Shots Fired 365 | . 8 64 230 51 12 Gun 257 | . 8 50 199 . . Cannon 89 | . . . 26 51 12 Launcher 19 | . . 14 5 . . Special . | . . . . . . Kinetic 173 | . 4 27 142 . . Thermal 112 | . . . 49 51 12 Explosive 19 | . . 14 5 . . Electromagnetic 61 | . 4 23 34 . . Robot Hit Streak 41 | . 4 32 41 8 11 Robot Miss Streak 3 | . . 1 3 2 . Penetration Max 1 | . . . 1 . . Secondary Targets 6 | . 1 1 4 . . Max Gunslinging Chain 1 | . 1 1 1 . . Shots Hit Robots 289 | . 4 55 186 34 10 Core Hits 131 | . 3 26 79 18 5 Critical Kills . | . . . . . . Critical Parts Destroyed 1 | . . . 1 . . Critical Strikes 4 | . . 1 3 . . Burn 2 | . . . 2 . . Destroy 1 | . . . 1 . . Corrupt 1 | . . 1 . . . Melee Attacks . | . . . . . . Impact . | . . . . . . Slashing . | . . . . . . Piercing . | . . . . . . Sneak Attacks . | . . . . . . Combat Hostiles . | . . . . . . Follow-up Attacks . | . . . . . . Damage Inflicted 5711 | . 49 1013 3500 899 250 Guns 3136 | . 49 531 2556 . . Cannons 1609 | . . . 460 899 250 Explosions 962 | . . 482 480 . . Melee . | . . . . . . Ramming 4 | . . . 4 . . Kinetic 2094 | . 28 302 1764 . . Thermal 2011 | . . . 862 899 250 Explosive 867 | . . 482 385 . . Electromagnetic 735 | . 21 229 485 . . Impact . | . . . . . . Slashing . | . . . . . . Piercing . | . . . . . . Highest Corruption 6 | . . . 6 3 3 Average Corruption 3 | . . . 4 2 3 Corruption Purged . | . . . . . . Corruption Blocked . | . . . . . . Effects 13 | . . . 7 4 2 Message Errors 1 | . . . . 1 . Matter Fused 4 | . . . 2 2 . Energy Discharges 4 | . . . 3 1 . Parts Rejected 1 | . . . 1 . . Data Loss (minor) 1 | . . . . . 1 Data Loss (major) 1 | . . . . . 1 Weapon Failures 1 | . . . 1 . . Overload Shots . | . . . . . . Overflow Damage 35 | . . 10 25 . . Projectiles 25 | . . . 25 . . Explosions 10 | . . 10 . . . Melee . | . . . . . . Knockbacks . | . . . . . . Impact . | . . . . . . Kinetic . | . . . . . . Secondary . | . . . . . . Self-Inflicted Damage 83 | . . 83 . . . Shots 5 | . . 5 . . . Rammed . | . . . . . . Targets Rammed 1 | . . . 1 . . Kicked 1 | . . . 1 . . Crushed . | . . . . . . Highest Temperature 789 | . . 24 405 789 645 Average Temperature 182 | . . 9 127 284 362 Received Heat Transfer 1956 | . . 201 972 135 648 Effects 60 | . . . 5 46 9 Shutdowns 24 | . . . 2 20 2 Energy Bleed 3 | . . . . 2 1 Interference 9 | . . . 2 7 . Matter Decay 7 | . . . 1 4 2 Short Circuit 5 | . . . . 2 3 Damage (minor) 3 | . . . . 3 . Damage (major) 5 | . . . . 5 . Damage (core) 4 | . . . . 3 1 Siege Activations . | . . . . . . Robots Corrupted . | . . . . . . Combat Hostiles . | . . . . . . Parts Fried 3 | . . . 3 . . Impact Corruptions . | . . . . . . Robots Melted 1 | . . . 1 . . Combat Hostiles 1 | . . . 1 . . Parts Melted 13 | . . . 11 2 . Heat Transferred 3491 | . . . 1826 1295 370 Parts Sabotaged . | . . . . . . Parts Stolen . | . . . . . . Parts Stripped . | . . . . . . Power Chain Reactions 1 | . . . 1 . . Alert | -11 -10 -9 -8 -7 -7 ------- Run | Yrd Mat Mat Mat Fac Low Peak Influence 370 | . 70 370 309 258 . Initial 87 | . . . 61 87 . Average 118 | . 14 144 181 71 . Maximum Alert Level 1 | . . 1 1 1 . Low Security (%) 75 | 100 100 69 55 95 . Level 1 24 | . . 30 44 4 . Level 2 . | . . . . . . Level 3 . | . . . . . . Level 4 . | . . . . . . Level 5 . | . . . . . . High Security . | . . . . . . Max Security . | . . . . . . Squads Dispatched 12 | . 1 . 6 5 . Investigation 3 | . 1 . 1 1 . Extermination 2 | . . . . 2 . Reinforcement 4 | . . . 2 2 . Assault . | . . . . . . Garrison 3 | . . . 3 . . Intercept . | . . . . . . Searches Triggered . | . . . . . . Construction Impeded . | . . . . . . Haulers Reinforced 1 | . . . . 1 . Active Scanning Responses . | . . . . . . Cargo Convoy Interrupts . | . . . . . . Stealth | -11 -10 -9 -8 -7 -7 --------- Run | Yrd Mat Mat Mat Fac Low Distress Signals 5 | . . 2 3 . . Communications Jammed . | . . . . . . Distress Signals . | . . . . . . Times Spotted 78 | . 3 18 39 14 4 Peak Tracking Total 5 | . 2 4 5 4 4 Tactical Retreats 4 | . . 3 . 1 . Traps | -11 -10 -9 -8 -7 -7 ------- Run | Yrd Mat Mat Mat Fac Low Traps Triggered 5 | . 4 . 1 . . Indirectly . | . . . . . . Trap Hack Attempts . | . . . . . . Triggered . | . . . . . . Disarmed . | . . . . . . Reprogrammed . | . . . . . . Reused . | . . . . . . Traps Extracted . | . . . . . . Installed . | . . . . . . Triggered . | . . . . . . Machines | -11 -10 -9 -8 -7 -7 ---------- Run | Yrd Mat Mat Mat Fac Low Machines Disabled 4 | . . 2 2 . . Max in Single Turn 1 | . . 1 1 . . Machines Repaired . | . . . . . . Machines Dismantled . | . . . . . . Machines Sabotaged . | . . . . . . Overloaded Fab Kills . | . . . . . . Hacking | -11 -10 -9 -8 -7 -7 --------- Run | Yrd Mat Mat Mat Fac Low Machines Accessed 16 | . 2 4 4 6 . Terminals 8 | . 1 3 2 2 . Fabricators 1 | . . . . 1 . Repair Stations 1 | . . . . 1 . Recycling Units 3 | . 1 . 1 1 . Scanalyzers 1 | . . 1 . . . Garrison Access 2 | . . . 1 1 . Total Hacks 23 | . 4 5 5 9 . Successful 9 | . 1 3 2 3 . Failed 14 | . 3 2 3 6 . Catastrophic . | . . . . . . Database Lockouts . | . . . . . . Manual . | . . . . . . Terminals 9 | . 1 3 2 3 . Fabricators 2 | . . . . 2 . Repair Stations 1 | . . . . 1 . Recycling Units 6 | . 3 . 2 1 . Scanalyzers 2 | . . 2 . . . Garrison Access 3 | . . . 1 2 . Terminal Hacks 2 | . . 1 . 1 . Open DSF 1 | . . . . 1 . Zone Layout 1 | . . 1 . . . Fabricator Hacks 1 | . . . . 1 . Build 1 | . . . . 1 . Repair Station Hacks . | . . . . . . Recycling Unit Hacks 3 | . 1 . 1 1 . Report Inventory 2 | . 1 . . 1 . Retrieve Components 1 | . . . 1 . . Scanalyzer 2 | . . 2 . . . Insert Component 1 | . . 1 . . . Analyze 1 | . . 1 . . . Garrison Access Hacks 1 | . . . 1 . . Unlock Access 1 | . . . 1 . . Unauthorized Hacks . | . . . . . . Terminals . | . . . . . . Fabricators . | . . . . . . Repair Stations . | . . . . . . Recycling Units . | . . . . . . Scanalyzers . | . . . . . . Garrison Access . | . . . . . . Data Cores Recovered . | . . . . . . Used . | . . . . . . Hacking Detections 7 | . 1 . 3 3 . Full Trace Events 2 | . 1 . . 1 . Feedback Events . | . . . . . . Feedback Blocked . | . . . . . . Robot Schematics Acquired . | . . . . . . Robots Built . | . . . . . . Authchips . | . . . . . . Time . | . . . . . . Total Robot Build Rating . | . . . . . . Part Schematics Acquired 1 | . . 1 . . . Parts Built 2 | . . . . 2 . Authchips . | . . . . . . Time 58 | . . . . 58 . Total Part Build Rating 14 | . . . . 14 . Parts Repaired . | . . . . . . Time . | . . . . . . Parts Recycled . | . . . . . . Recycled Matter . | . . . . . . Retrieved Matter . | . . . . . . Retrieved Components 10 | . . . 10 . . Parts Scanalyzed 1 | . . 1 . . . Part Schematics Acquired 1 | . . 1 . . . Parts Damaged . | . . . . . . Bothacking | -11 -10 -9 -8 -7 -7 ------------ Run | Yrd Mat Mat Mat Fac Low Used RIF Installer . | . . . . . . Robots Hacked . | . . . . . . Non-combat . | . . . . . . Combat . | . . . . . . Robot Hacks Applied . | . . . . . . Relay Couplers Released . | . . . . . . Fabnet Peak Effective % . | . . . . . . Robots Rewired . | . . . . . . Allies Hacked . | . . . . . . Hacks Repelled . | . . . . . . Allies | -11 -10 -9 -8 -7 -7 -------- Run | Yrd Mat Mat Mat Fac Low Total Allies . | . . . . . . Largest Group . | . . . . . . Highest-Rated Group . | . . . . . . Highest-Rated Ally . | . . . . . . Total Orders . | . . . . . . Ally Attacks . | . . . . . . Total Damage . | . . . . . . Kills . | . . . . . . Allies Corrupted . | . . . . . . Allies Melted . | . . . . . . Intel | -11 -10 -9 -8 -7 -7 ------- Run | Yrd Mat Mat Mat Fac Low Robot Analysis Total . | . . . . . . Derelict Logs Recovered . | . . . . . . Drone Launches . | . . . . . . Drone Recoveries . | . . . . . . Exploration | -11 -10 -9 -8 -7 -7 ------------- Run | Yrd Mat Mat Mat Fac Low Turns Passed 4067 | 67 562 815 1508 1025 90 Spaces Moved 2160 | 51 314 462 691 612 30 Core 51 | 18 3 . . . 30 Treads 1606 | . 128 379 487 612 . Legs 345 | 33 183 . 129 . . Wheels 158 | . . 83 75 . . Hover . | . . . . . . Flight . | . . . . . . Fastest Speed 50 | 50 100 100 90 150 200 Average Speed 148 | 97 155 149 141 150 236 Slowest Speed 400 | 120 190 160 240 225 400 Overloaded Moves . | . . . . . . Propulsion Burnouts . | . . . . . . Robots Hopped . | . . . . . . Cave-ins Triggered . | . . . . . . Exploration Rate (%) 22 | 4 32 26 47 18 7 Regions Visited 5 Branch Regions 1 Pre-discovered Areas . | . . . . . . Known Exits Taken . | . . . . . . Unknown Exits Taken 5 | 1 1 1 1 1 . Scrap Searched . | . . . . . . Spaces Dug . | . . . . . . Terrain Destroyed 100 | . . 81 19 . . Melee . | . . . . . . Projectile 4 | . . . 4 . . AOE 96 | . . 81 15 . . Terrain Rammed . | . . . . . . Walls Destroyed . | . . . . . . Machines Disabled . | . . . . . . Actions | -11 -10 -9 -8 -7 -7 --------- Run | Yrd Mat Mat Mat Fac Low Total 2685 | 68 383 531 999 666 38 Wait 116 | 2 35 4 56 19 . Move 2155 | 50 313 461 690 611 30 Hop . | . . . . . . Pick Up 80 | 10 15 10 41 4 . Fast Attach . | . . . . . . Attach 53 | 6 9 7 28 3 . Detach 4 | . 2 . 1 1 . Swap 16 | . 2 1 12 1 . Drop 28 | . 3 8 17 . . Fire 232 | . 4 40 153 27 8 Melee . | . . . . . . Ram . | . . . . . . Kick 1 | . . . 1 . . Crush . | . . . . . . Escape Stasis . | . . . . . . Rewire . | . . . . . . Trap . | . . . . . . Miscellaneous . | . . . . . . Route ------- -11/Scrapyard -10/Materials (discovered 2 exits: *Mat / [*Min]) -9/Materials -8/Materials (discovered 2 exits: *Fac / Gar) -7/Factory -7/Lower Caves History --------- Turn | Location | Event 17 | -11/Scrapyard | Discovered new exit (range 15) 68 | -11/Scrapyard | Entered Materials 153 | -10/Materials | Discovered new exit (range 5) 194 | -10/Materials | Discovered new exit (range 16) 311 | -10/Materials | Build established: Mutant 630 | -10/Materials | Entered another Materials area 630 | -9/Materials | Evolved 2 slots: Propulsion x1, Utility x1 1397 | -9/Materials | Discovered new exit (range 16) 1445 | -9/Materials | Entered another Materials area 1445 | -8/Materials | Evolved 2 slots: Power x1, Utility x1 1677 | -8/Materials | Lost 3 parts (1p2w) 1808 | -8/Materials | Lost 4 parts (1n1u2w) 2136 | -8/Materials | Build established: Scavenger-Mutant 2593 | -8/Materials | Garrison activated, responded to threat 2611 | -8/Materials | Core integrity fell below 50% 2685 | -8/Materials | Identified exit to Garrison 2742 | -8/Materials | Lost 3 parts (2p1w) 2936 | -8/Materials | Discovered new exit (range 9) 2953 | -8/Materials | Entered Factory 2953 | -7/Factory | Evolved 2 slots: Power x1, Utility x1 3089 | -7/Factory | Fabricated Quantum Capacitor (x2) 3773 | -7/Factory | P-60 Hacker assimilated allied AZ-CTV(g) 3920 | -7/Factory | Discovered new exit (range 15) 3968 | -7/Factory | Core integrity fell below 50% 3978 | -7/Factory | Entered Lower Caves 4034 | -7/Lower Caves | Core integrity fell below 20% 4059 | -7/Lower Caves | Lost 10 parts (3p3n2u2w) 4068 | -7/Lower Caves | Destroyed by G-47 Trooper with Particle Gun Last Messages --------------- 03996_ Overheating: Core damaged (-77). 03996_ Terrain Scanner destroyed. 03998_ Hvy. Particle Cannon broken. 03998_ Overheating: Short circuit. 04000_ Overheating: Matter decay (-20). 04000_ Broken Hvy. Particle Cannon destroyed. 04000_ Critical hit (Burn: +37). 04005_ System corrupted: Component data lost. 04006_ Critical hit (Burn: +37). 04007_ Carbon-fiber Leg fries itself beyond repair. 04012_ Overheating: Matter decay (-33). 04026_ Broken Hvy. Particle Cannon destroyed. 04026_ Critical hit (Burn: +37). 04028_ Broken Adv. Treads destroyed. 04035_ Critical hit (Burn: +37). 04038_ System corrupted: Substantial component data lost. 04057_ Critical hit (Burn: +37). [Achievement: 5k Club] Map ----- +----------------------------------------------------+ | ?????????????????????????????????????????????????? | | ?????????????????????????????????????????????????? | | ?????????????????????????????????????????????????? | | ?????????????????????????????????????????????????? | | ?????????????????????????????????????????????????? | | ?????????????????????????????????????????????????? | | ?????????????????????????????????????????????????? | | ?????????????????????????????????????????????????? | | ?????????????????????????????????????????????????? | | ?????????????????????????????????????????????????? | | ??????????????????????? ?????????????????????????? | | ????????????????????? ?????????????????????????? | | ????????????????????? ?????????????????????????? | | ???????????????????? ?????????????????????????? | | ????????????????????? ????????????????????????? | | ????????????????????? ??????????????#?????????? | | ????????????????????? ?????????????? ????????? | | ?????????????????????? ??????????????? ????????? | | ??????????????????????# ??????????????? #####???? | | ??????????????????????# ???????????????? ##??? | | ??????????????????????# ???????????????? ##?? | | ?????????????????????## ####????????????# ##? | | ????????????????# ???# ##########??## #? | | ???????????????## ## #??# % #? | | ???????????????# #??# % #?? | | ?????????????# @ ### #??# #?? | | ????????????# # g ##?# #??## #?? | | ?????????? ????#S # g#??# ##### ##?? | | ??????????? ????????# # #?## ## #??? | | ???????????????????????# # ##?# #??? | | ???????????????????????# # #?# ##??? | | ???????????????????????# # #?# ##???? | | ??????????????????????? # #?## #????? | | ??????????????????????? #?# #????? | | ???????????????????????#### #?# ## #????? | | ??????????????????????????##### #### ###????? | | ??????????????????????????????? #??###??????? | | ??????????????????????????????## #####???????????? | | ???????????????????????????????###???????????????? | | ?????????????????????????????????????????????????? | | ?????????????????????????????????????????????????? | | ?????????????????????????????????????????????????? | | ?????????????????????????????????????????????????? | | ?????????????????????????????????????????????????? | | ?????????????????????????????????????????????????? | | ?????????????????????????????????????????????????? | | ?????????????????????????????????????????????????? | | ?????????????????????????????????????????????????? | | ?????????????????????????????????????????????????? | | ?????????????????????????????????????????????????? | +----------------------------------------------------+ Best States ------------- Heat Dissipation 34 Energy Generation 29 Energy Capacity 360 Matter Stores 400 Matter Capacity 400 Sight Range 16 Terrain Scan Range 14 Terrain Scan Density 110 ECM Strength 1 Resistance: KI 20 Resistance: TH 20 Resistance: EX 20 Resistance: EM 20 Resistance: I 20 Resistance: S 20 Resistance: P 20 Evasion (%) 57 Targeting Accuracy 8 Recoil Reduction 3 Offensive Hacking 10 Item Schematics ----------------- Lgt. Treads | -9/Materials | Scanalyzed Robot Schematics ------------------ None Fabricated ------------ Quantum Capacitor | x2 | -7/Factory | Preloaded Alien Tech Used ----------------- None Achievements -------------- 5k Club It's Just You Just What I Needed Loot Pinata Please Form A Line Challenges ------------ None Game ------ Seed MachineClaymoresSword Manual? 0 Play Time 01:50:35 Cumulative 12.8 hours Start 2024.02.28 @ 12:03:27 End 2024.03.03 @ 19:43:52 Sessions 4 Manual Loads 0 Difficulty Adventurer Special Mode None Game No. 13 Rogue 10 Adventurer 3 Explorer 0 Win Type - Total 0 Types 0/0/0/0/0/0/0/0/0 Lore% 1 Gallery% 11 Achievement% 7 Wizard Run 0 Options --------- Layout 1 ASCII 0 Keyboard 0 Movement Mouse Keybinds 0 Fullscreen 2 Font 32/SmallcapsGlow Map View 50x35 Zoom Use 15% Tactical HUD 1 Map Filters NONE Filters NONE Steam 1 RUN: ad717839-e5e8-442d-bf5b-5645b004e99e